Cogmind - Beta 17 @@@ ROGUE MODE // 2026.07.21 @ 00:44:01 Player: kite Result: Self-destructed Performance ------------- Evolutions (4) 2000 Regions Visited (9) 1800 Robots Destroyed (133) 665 Value Destroyed (3083) 3083 Prototype IDs (3) 60 Alien Tech Used (0) 0 Bonus (110) 110 TOTAL SCORE: 7718 Bonus ------- Follower Combat Kills 123 Friendly Fire -13 Cogmind --------- Core Integrity 496/850 Matter 300/300 Energy 240/240 System Corruption 6% Temperature Cool (18) Movement Rolling (123) Ox2 Location -6/Factory Parts ------- > --- POWER (1) -------- Nuclear Core > --- PROPULSION (6) --- Wheel Compact Wheel Compact Wheel > --- UTILITY (5) ------ Huge Storage Unit Advanced Melee Analysis Suite Hardened Medium Armor Plating Hacking Suite > --- WEAPON (3) ------- Heavy Flail Spear Spear > --- INVENTORY (25) --- Wheel Compact Wheel Compact Wheel Compact Wheel Triangulator Advanced Melee Analysis Suite Layered Medium Armor Plating Layered Medium Armor Plating Layered Medium Armor Plating Layered Medium Armor Plating EM Shield System Guard Drone Bay (2/2) Drone Bay (2/2) Plasma Cutter CPS Tube (2) Mace Mace Mace Spear Spear Peak State ------------ > --- POWER ------------ F-cell Engine > --- PROPULSION ------- Light Treads Light Treads Light Treads Light Treads Light Treads Medium Treads > --- UTILITY ---------- Large Storage Unit Advanced Melee Analysis Suite Hardened Medium Armor Plating Shield Generator Drone Bay > --- WEAPON ----------- Mace Great Maul Great Maul > --- INVENTORY -------- Light Treads Light Treads Seismic Detector Seismic Detector Heavy Armor Plating EM Shield Hacking Suite Corruption Screen Drone Bay Remote Datajack Plasma Cutter CPS Tube Flail Heavy Hammer [Rating: 43] Favorites ----------- Power F-cell Engine Engine F-cell Engine Power Core Nuclear Core Propulsion Light Treads Treads Light Treads Wheel Compact Wheel Utility Large Storage Unit Device Seismic Detector Storage Large Storage Unit Processor Melee Analysis Suite Hackware Hacking Suite Protection Hardened Medium Armor Plating Weapon Great Maul Energy Gun Medium Laser Ballistic Gun Light Assault Rifle Launcher Grenade Launcher Special Weapon Plasma Cutter Impact Weapon Great Maul Slashing Weapon Blade Saw Piercing Weapon Spear Build | -11 -10 -10 -10 -9 -8 -8 -8 -8 -6 ------- Run | Yrd Mat Min Exi Min Mat Sto Rec Scr Fac Slots Evolved 8 | . . . . . 4 . . . 4 Power . | . . . . . . . . . . Propulsion 4 | . . . . . 2 . . . 2 Utility 3 | . . . . . 1 . . . 2 Weapon 1 | . . . . . 1 . . . . Parts Attached 78 | 6 5 4 1 . 15 11 1 3 32 Power 9 | 1 . 3 . . . 3 . . 2 Engine 7 | 1 . 2 . . . 3 . . 1 Core 2 | . . 1 . . . . . . 1 Reactor . | . . . . . . . . . . Propulsion 23 | 2 . . . . 6 2 . 3 10 Treads 13 | 2 . . . . 4 2 . 3 2 Leg . | . . . . . . . . . . Wheel 10 | . . . . . 2 . . . 8 Hover . | . . . . . . . . . . Flight . | . . . . . . . . . . Utility 27 | 1 2 1 1 . 6 2 . . 14 Device 11 | . 1 . . . 4 . . . 6 Storage 5 | 1 . 1 1 . . . . . 2 Processor 4 | . . . . . 1 1 . . 2 Hackware 1 | . . . . . . . . . 1 Protection 6 | . 1 . . . 1 1 . . 3 Artifact . | . . . . . . . . . . Weapon 19 | 2 3 . . . 3 4 1 . 6 Energy Gun 5 | 2 1 . . . 2 . . . . Energy Cannon . | . . . . . . . . . . Ballistic Gun 2 | . 1 . . . 1 . . . . Ballistic Cannon . | . . . . . . . . . . Launcher 1 | . 1 . . . . . . . . Special Weapon 1 | . . . . . . 1 . . . Impact Weapon 6 | . . . . . . 2 1 . 3 Slashing Weapon 1 | . . . . . . 1 . . . Piercing Weapon 3 | . . . . . . . . . 3 Special Melee Weapon . | . . . . . . . . . . Unidentified Prototypes 3 | . . . . . . 2 . . 1 Corrupted Parts 1 | . . . . . . . . 1 . System Corruption 6 | . . . . . . . . 6 . Parts Lost 30 | . . 1 . . 4 3 . . 22 Power 3 | . . 1 . . . . . . 2 Propulsion 15 | . . . . . 2 1 . . 12 Utility 6 | . . . . . 1 1 . . 4 Weapon 6 | . . . . . 1 1 . . 4 Highest Loss Streak 5 | . . 1 . . 3 2 . . 5 To Critical Strikes . | . . . . . . . . . . Average Backups 11 | 3 7 7 9 9 11 13 13 13 13 Power . | . 1 . . . . 1 . . . Propulsion 2 | 1 2 1 . . . 2 3 3 2 Utility 5 | . 3 3 4 4 5 6 6 6 7 Weapon 2 | . 1 2 5 5 5 1 2 2 1 Tool/Special . | . . . . . . . . . . Unused Backups 44 | 1 . 3 . . 4 7 6 2 21 Power . | . . . . . . . . . . Propulsion 11 | . . 2 . . 1 3 . . 5 Utility 16 | 1 . 1 . . . 1 3 . 10 Weapon 15 | . . . . . 3 3 3 2 4 Tool/Special 2 | . . . . . . . . . 2 Average Slot Usage (%) 95 | . 93 99 100 100 80 95 97 100 94 Engine 9 | . 14 13 14 14 9 9 9 9 5 Treads 30 | . 28 27 28 28 13 35 36 36 27 Wheel 2 | . . . . . 8 . . . 8 Device 3 | . 7 . . . 10 1 . . 9 Storage 9 | . 14 14 14 14 9 9 9 9 6 Processor 5 | . . . . . . 7 9 9 8 Protection 7 | . . 14 14 14 5 9 9 9 2 Energy Gun 8 | . 27 27 28 28 19 3 . . . Impact Weapon 13 | . . . . . . 14 24 27 17 Peak Build Rating 43 | 6 8 10 10 11 24 27 28 31 43 Average Rating 23 | 5 7 8 10 10 18 23 25 29 37 On Entrance 15 | . 6 8 10 10 11 24 22 28 31 Avg Prop Armor Cover (%) 14 | . . . . . 12 . . . 16 Naked Turns . | . . . . . . . . . . Heaviest Build 103 | 12 15 26 36 36 45 46 50 50 103 Greatest Support 128 | 40 40 40 40 40 80 80 80 88 128 Greatest Overweight (x) 11 | . . 5 . . 11 . . . 2 Average Overweight (x) . | . . . . . 1 . . . . Largest Inventory Capacity 25 | 8 8 10 15 15 15 15 15 15 25 Average Capacity 13 | 7 8 8 10 15 15 15 15 15 16 Most Carried 23 | 7 8 10 10 12 15 15 15 15 23 Average Carried 12 | 3 7 7 10 10 12 14 14 14 14 Final Capacity 25 | 8 8 10 15 15 15 15 15 15 25 Final Carried 21 | 7 8 10 10 12 15 14 15 15 21 Class Distribution -------------------- 48% | Scavenger-Gladiator 28% | Mutant 15% | Gladiator 4% | Scavenger-Tank Dominant Class ---------------- Mutant | -10/Materials Mutant | -10/Mines Mutant | -10/Exiles Mutant | -9/Mines Scavenger-Tank | -8/Materials Scavenger-Gladiator | -8/Storage Scavenger-Gladiator | -8/Recycling Gladiator | -8/Scraptown Scavenger-Gladiator | -6/Factory Resources | -11 -10 -10 -10 -9 -8 -8 -8 -8 -6 ----------- Run | Yrd Mat Min Exi Min Mat Sto Rec Scr Fac Matter Collected 1388 | 156 88 244 . 10 223 171 20 10 466 Remotely . | . . . . . . . . . . Salvage Created 5304 | 240 208 149 . 51 564 1379 639 . 2074 Parts 194 | 21 21 11 . 3 36 37 16 . 49 Haulers Intercepted 8 | . 1 . . . 1 5 . . 1 Recyclers Shooed 6 | . 1 1 . . . 2 2 . . Parts Field Recycled . | . . . . . . . . . . Retrieved Matter . | . . . . . . . . . . Parts Self-Destructed . | . . . . . . . . . . Prevented . | . . . . . . . . . . Parts Restored . | . . . . . . . . . . Kills | -11 -10 -10 -10 -9 -8 -8 -8 -8 -6 ------- Run | Yrd Mat Min Exi Min Mat Sto Rec Scr Fac Combat Hostiles Destroyed 70 | . 7 7 . . 11 17 3 . 25 Melee 19 | . . . . . . 6 1 . 12 Guns 13 | . 2 5 . . 5 1 . . . AOE 15 | . 5 2 . . 6 2 . . . Classes Destroyed 13 | 2 5 . . . 3 2 . . 1 Worker 11 | . 2 . . 1 1 2 . . 5 Builder 7 | . . . . . 1 . 2 . 4 Tunneler 9 | 7 . . . 1 . . . . 1 Hauler 8 | . 1 . . . 1 5 . . 1 Recycler 21 | 1 . . . . 2 6 6 . 6 Mechanic 2 | . . . . . 1 1 . . . Operator 2 | . . . . . . 2 . . . Watcher 2 | . 1 . . . 1 . . . . Swarmer 23 | . 5 5 . . 6 3 . . 4 Grunt 27 | . 2 2 . . 4 8 . . 11 Sentry 12 | . . . . . 2 5 3 . 2 Hunter 3 | . . . . . . 1 . . 2 Programmer 6 | . . . . . . . . . 6 Best Kill Streak 6 | 3 5 2 . 1 4 4 4 . 6 Combat Bots Only 4 | . 3 2 . . 4 4 2 . 4 Max Kills in Single Turn 4 | 1 2 2 . 1 4 2 1 . 1 Gunslinging 1 | . . 1 . . . . . . . Exploded 3 | . 2 1 . . 3 2 . . . Melee 1 | . . . . . . 1 1 . 1 Uniques/NPCs Destroyed . | . . . . . . . . . . Combat | -11 -10 -10 -10 -9 -8 -8 -8 -8 -6 -------- Run | Yrd Mat Min Exi Min Mat Sto Rec Scr Fac Hostile Shots Fired 502 | . 23 27 . 11 42 93 12 . 294 Missed 137 | . 9 9 . 4 10 25 3 . 77 Hits 365 | . 14 18 . 7 32 68 9 . 217 Projectile 365 | . 14 18 . 7 32 68 9 . 217 Critical Strikes 7 | . . . . . . 2 . . 5 Damage Taken 4502 | 20 126 171 . 54 490 851 133 . 2657 Core 547 | . 13 . . 13 61 92 14 . 354 Absorbed by Shields 344 | . . . . . . . . . 344 Core Remaining (%) 86 | 100 . . . 89 . . . 69 . Volleys Fired 99 | 17 17 14 . 8 36 7 . . . Largest 3 | 2 2 2 . 2 3 3 . . . Hottest 163 | 90 100 100 . 100 163 139 . . . Shots Fired 222 | 34 31 23 . 16 99 19 . . . Gun 210 | 34 28 18 . 16 96 18 . . . Cannon . | . . . . . . . . . . Launcher 12 | . 3 5 . . 3 1 . . . Special . | . . . . . . . . . . Kinetic 30 | . 1 . . . 23 6 . . . Thermal 158 | 17 22 18 . 16 73 12 . . . Explosive 12 | . 3 5 . . 3 1 . . . Electromagnetic 22 | 17 5 . . . . . . . . Robot Hit Streak 15 | 5 3 6 . 3 15 10 . . . Robot Miss Streak 4 | 3 3 4 . 4 4 1 . . . Penetration Max . | . . . . . . . . . . Secondary Targets 2 | . . 2 . . . . . . . Max Gunslinging Chain 1 | . . 1 . . . . . . . Shots Hit Robots 317 | 20 16 10 . 6 66 68 17 . 114 Core Hits 99 | 9 16 8 . 2 30 14 4 . 16 Critical Kills 4 | . . . . . . 1 1 . 2 Critical Parts Destroyed 36 | . . . . . . 13 3 . 20 Critical Strikes 51 | 3 1 . . 1 2 15 5 . 24 Burn 7 | 3 1 . . 1 2 . . . . Smash 41 | . . . . . . 14 5 . 22 Sever 1 | . . . . . . 1 . . . Impale 2 | . . . . . . . . . 2 Melee Attacks 275 | . . . . . . 88 23 . 164 Impact 243 | . . . . . . 79 23 . 141 Slashing 9 | . . . . . . 9 . . . Piercing 23 | . . . . . . . . . 23 Sneak Attacks 45 | . . . . . . 18 9 . 18 Combat Hostiles . | . . . . . . . . . . Follow-up Attacks 36 | . . . . . . 12 3 . 21 Damage Inflicted 12317 | 269 527 261 . 100 1127 3229 1025 . 5779 Guns 1610 | 226 205 138 . 100 826 115 . . . Cannons . | . . . . . . . . . . Explosions 851 | 43 322 95 . . 301 90 . . . Melee 9818 | . . . . . . 3022 1025 . 5771 Ramming 38 | . . 28 . . . 2 . . 8 Kinetic 113 | . . . . . 96 17 . . . Thermal 1400 | 157 177 138 . 100 730 98 . . . Explosive 808 | . 322 95 . . 301 90 . . . Electromagnetic 140 | 112 28 . . . . . . . . Impact 9018 | . . . . . . 2931 1025 . 5062 Slashing 91 | . . . . . . 91 . . . Piercing 709 | . . . . . . . . . 709 Highest Corruption 6 | . . . . . . . . 6 6 Average Corruption 3 | . . . . . . . . 6 3 Corruption Purged . | . . . . . . . . . . Corruption Blocked 2 | . . . . . . . . . 2 Effects 41 | . . . . . . . . . 41 Message Errors 11 | . . . . . . . . . 11 Matter Fused 6 | . . . . . . . . . 6 Heat Flow Errors 6 | . . . . . . . . . 6 Energy Discharges 6 | . . . . . . . . . 6 Data Loss (minor) 9 | . . . . . . . . . 9 Data Loss (major) 3 | . . . . . . . . . 3 Overload Shots . | . . . . . . . . . . Overflow Damage 3721 | . 10 . . . . 1242 392 . 2077 Projectiles . | . . . . . . . . . . Explosions 10 | . 10 . . . . . . . . Melee 3711 | . . . . . . 1242 392 . 2077 Knockbacks 40 | . . . . . . 9 2 . 29 Impact 40 | . . . . . . 9 2 . 29 Kinetic . | . . . . . . . . . . Secondary . | . . . . . . . . . . Self-Inflicted Damage 75 | 20 . 31 . . 24 . . . . Shots 3 | 1 . 1 . . 1 . . . . Rammed 7 | . . 6 . . . . . . 1 Targets Rammed 8 | . . 6 . . . 1 . . 1 Kicked . | . . . . . . . . . . Crushed 1 | . . . . . . 1 . . . Highest Temperature 306 | 150 72 144 . 306 135 51 . . 271 Average Temperature 63 | 50 22 63 . 125 38 17 . . 116 Received Heat Transfer 1159 | . 30 . . . 207 270 45 . 607 Effects 1 | . . . . . . . . . 1 Interference 1 | . . . . . . . . . 1 Siege Activations . | . . . . . . . . . . Martial Activations . | . . . . . . . . . . Shielding Activations . | . . . . . . . . . . Robots Disrupted . | . . . . . . . . . . Combat Hostiles . | . . . . . . . . . . Robots Corrupted 37 | . . . . . . 12 5 . 20 Combat Hostiles 23 | . . . . . . 8 2 . 13 Parts Fried 55 | . . . . . . 15 9 . 31 Impact Corruptions 127 | . . . . . . 38 14 . 75 Robots Melted . | . . . . . . . . . . Combat Hostiles . | . . . . . . . . . . Parts Melted 13 | 3 2 . . . 7 1 . . . Heat Transferred 4194 | 605 592 407 . 370 1998 222 . . . Parts Sabotaged . | . . . . . . . . . . Parts Stolen . | . . . . . . . . . . Parts Stripped . | . . . . . . . . . . Power Chain Reactions 1 | 1 . . . . . . . . . Alert | -11 -10 -10 -10 -9 -8 -8 -8 -8 -6 ------- Run | Yrd Mat Min Exi Min Mat Sto Rec Scr Fac Maximum Alert Level 1 | . . 1 . . . . . . 1 Low Security (%) 99 | 100 100 99 . 100 100 100 100 . 99 Level 1 . | . . . . . . . . . . Level 2 . | . . . . . . . . . . Level 3 . | . . . . . . . . . . Level 4 . | . . . . . . . . . . Level 5 . | . . . . . . . . . . High Security . | . . . . . . . . . . Max Security . | . . . . . . . . . . Peak Influence 246 | 15 108 202 . 94 168 178 60 . 246 Initial 54 | . . 32 . . . 53 54 . . Average 71 | 1 42 69 . 34 105 82 19 . 104 Influence Increases 2980 | 40 211 383 . 114 395 583 264 . 990 Destroy 0b10 Robot/C 1620 | . 140 260 . 80 240 340 60 . 500 Destroy 0b10 Robot/NC 310 | 40 20 . . 10 35 80 40 . 85 Destroy Leader 378 | . 24 50 . 10 54 90 . . 150 Allied During Kill 63 | . . 33 . 14 16 . . . . Successful Hack 52 | . 14 . . . . 2 12 . 24 Select Force Hacks 150 | . . . . . . . 150 . . Disable Machine 60 | . . . . . . 60 . . . Destroy Structure 92 | . 13 25 . . 20 11 2 . 21 Lose Combat Pursuer 255 | . . 15 . . 30 . . . 210 Influence Decreases 2767 | 40 127 429 38 114 268 571 399 4 777 Entered New Map 253 | . . 52 38 . . 74 85 4 . Time Decay 2134 | 40 127 347 . 114 188 467 314 . 537 Lost Part 300 | . . 10 . . 40 30 . . 220 Lost Ally 80 | . . 20 . . 40 . . . 20 Squads Dispatched 12 | . 1 1 . . . 2 . . 8 Investigation 3 | . 1 1 . . . . . . 1 Extermination 4 | . . . . . . . . . 4 Reinforcement 5 | . . . . . . 2 . . 3 Assault . | . . . . . . . . . . Garrison . | . . . . . . . . . . Intercept . | . . . . . . . . . . Searches Triggered . | . . . . . . . . . . Construction Impeded . | . . . . . . . . . . Haulers Reinforced 1 | . . . . . . . . . 1 Active Scanning Responses . | . . . . . . . . . . Cargo Convoy Interrupts . | . . . . . . . . . . Stealth | -11 -10 -10 -10 -9 -8 -8 -8 -8 -6 --------- Run | Yrd Mat Min Exi Min Mat Sto Rec Scr Fac Distress Signals 10 | . 2 . . . 4 2 . . 2 Communications Jammed . | . . . . . . . . . . Distress Signals . | . . . . . . . . . . Times Spotted 119 | . 11 11 . 4 16 24 3 . 50 Peak Tracking Total 7 | . 5 3 . 4 5 5 2 . 7 Tactical Retreats 10 | . . 1 . . 2 . . . 7 Traps | -11 -10 -10 -10 -9 -8 -8 -8 -8 -6 ------- Run | Yrd Mat Min Exi Min Mat Sto Rec Scr Fac Traps Triggered 3 | . . . . . . . . . 3 Indirectly . | . . . . . . . . . . Trap Hack Attempts . | . . . . . . . . . . Triggered . | . . . . . . . . . . Disarmed . | . . . . . . . . . . Reprogrammed . | . . . . . . . . . . Reused . | . . . . . . . . . . Traps Extracted . | . . . . . . . . . . Installed . | . . . . . . . . . . Triggered . | . . . . . . . . . . Machines | -11 -10 -10 -10 -9 -8 -8 -8 -8 -6 ---------- Run | Yrd Mat Min Exi Min Mat Sto Rec Scr Fac Machines Disabled 4 | . . . . . . 4 . . . Max in Single Turn 1 | . . . . . . 1 . . . Garrison Access 1 | . . . . . . 1 . . . Machines Repaired . | . . . . . . . . . . Machines Dismantled 1 | . . . . . . 1 . . . Machines Sabotaged . | . . . . . . . . . . Overloaded Fab Kills . | . . . . . . . . . . Hacking | -11 -10 -10 -10 -9 -8 -8 -8 -8 -6 --------- Run | Yrd Mat Min Exi Min Mat Sto Rec Scr Fac Machines Accessed 28 | . 2 1 1 . . 5 10 . 9 Terminals 18 | . 2 . . . . 4 5 . 7 Fabricators 1 | . . . . . . . . . 1 Repair Stations . | . . . . . . . . . . Recycling Units 5 | . . . . . . . 5 . . Scanalyzers 1 | . . . . . . . . . 1 Garrison Access 1 | . . . . . . 1 . . . Total Hacks 64 | . 7 1 4 . . 7 19 . 26 Successful 30 | . 2 1 4 . . 3 10 . 10 Failed 34 | . 5 . . . . 4 9 . 16 Catastrophic 4 | . 1 . . . . 1 . . 2 Database Lockouts . | . . . . . . . . . . Manual 36 | . 7 . . . . 2 19 . 8 Terminals 49 | . 7 . . . . 6 13 . 23 Fabricators 2 | . . . . . . . . . 2 Repair Stations . | . . . . . . . . . . Recycling Units 6 | . . . . . . . 6 . . Scanalyzers 1 | . . . . . . . . . 1 Garrison Access 1 | . . . . . . 1 . . . Terminal Hacks 16 | . 2 1 4 . . 2 . . 7 Record 4 | . . . 4 . . . . . . Part Schematic 2 | . 2 . . . . . . . . Open Door 3 | . . 1 . . . 2 . . . Branch Access Points 1 | . . . . . . . . . 1 Terminal Index 1 | . . . . . . . . . 1 Alert Level 1 | . . . . . . . . . 1 Transport Status 1 | . . . . . . . . . 1 Hauler Manifests 1 | . . . . . . . . . 1 Registered Components 1 | . . . . . . . . . 1 Registered Prototypes 1 | . . . . . . . . . 1 Fabricator Hacks 2 | . . . . . . . . . 2 Load Schematic 1 | . . . . . . . . . 1 Build 1 | . . . . . . . . . 1 Repair Station Hacks . | . . . . . . . . . . Recycling Unit Hacks . | . . . . . . . . . . Scanalyzer . | . . . . . . . . . . Garrison Access Hacks 1 | . . . . . . 1 . . . Seal Access 1 | . . . . . . 1 . . . Unauthorized Hacks 11 | . . . . . . . 10 . 1 Terminals 6 | . . . . . . . 5 . 1 Botnet 2 | . . . . . . . 1 . 1 Skim 4 | . . . . . . . 4 . . Fabricators . | . . . . . . . . . . Repair Stations . | . . . . . . . . . . Recycling Units 5 | . . . . . . . 5 . . Tunnel 5 | . . . . . . . 5 . . Scanalyzers . | . . . . . . . . . . Garrison Access . | . . . . . . . . . . Data Cores Recovered . | . . . . . . . . . . Used . | . . . . . . . . . . Hacking Detections 19 | . 2 . . . . 4 4 . 9 Full Trace Events 2 | . 1 . . . . . . . 1 Feedback Events . | . . . . . . . . . . Feedback Blocked . | . . . . . . . . . . Robot Schematics Acquired . | . . . . . . . . . . Robots Built . | . . . . . . . . . . Authchips . | . . . . . . . . . . Time . | . . . . . . . . . . Total Robot Build Rating . | . . . . . . . . . . Part Schematics Acquired 2 | . 2 . . . . . . . . Parts Built 1 | . . . . . . . . . 1 Authchips . | . . . . . . . . . . Time 25 | . . . . . . . . . 25 Total Part Build Rating 1 | . . . . . . . . . 1 Part Studies Acquired . | . . . . . . . . . . Parts Repaired . | . . . . . . . . . . Time . | . . . . . . . . . . Parts Recycled . | . . . . . . . . . . Recycled Matter . | . . . . . . . . . . Retrieved Matter . | . . . . . . . . . . Retrieved Components . | . . . . . . . . . . Parts Scanalyzed . | . . . . . . . . . . Part Schematics Acquired . | . . . . . . . . . . Parts Damaged . | . . . . . . . . . . Bothacking | -11 -10 -10 -10 -9 -8 -8 -8 -8 -6 ------------ Run | Yrd Mat Min Exi Min Mat Sto Rec Scr Fac Used RIF Installer . | . . . . . . . . . . Robots Hacked . | . . . . . . . . . . Non-combat . | . . . . . . . . . . Combat . | . . . . . . . . . . Robot Hacks Applied . | . . . . . . . . . . Relay Couplers Released . | . . . . . . . . . . Fabnet Peak Effective % . | . . . . . . . . . . Robots Rewired . | . . . . . . . . . . Allies Hacked . | . . . . . . . . . . Hacks Repelled . | . . . . . . . . . . Allies | -11 -10 -10 -10 -9 -8 -8 -8 -8 -6 -------- Run | Yrd Mat Min Exi Min Mat Sto Rec Scr Fac Total Allies 6 | . . 3 . 3 . . . . . Largest Group 3 | . . 2 1 3 3 . . . . Highest-Rated Group 62 | . . 62 31 40 40 . . . . Highest-Rated Ally 31 | . . 31 31 16 16 . . . . Total Orders 13 | . . . . . . . . . 13 ROAM 1 | . . . . . . . . . 1 EXPLORE 7 | . . . . . . . . . 7 RETURN 5 | . . . . . . . . . 5 Ally Attacks 45 | . . 15 . 16 14 . . . . Total Damage 475 | . . 214 . 145 116 . . . . Kills 11 | . . 6 . 4 1 . . . . Allies Corrupted . | . . . . . . . . . . Allies Melted . | . . . . . . . . . . Intel | -11 -10 -10 -10 -9 -8 -8 -8 -8 -6 ------- Run | Yrd Mat Min Exi Min Mat Sto Rec Scr Fac Active Infowar (turns) 1711 | . . . . . 78 . . . 1633 Seismic 1711 | . . . . . 78 . . . 1633 Robot Analysis Total . | . . . . . . . . . . Derelict Logs Recovered 2 | . . 1 . 1 . . . . . Drone Launches 8 | . . . . . . . . . 8 Drone Recoveries 6 | . . . . . . . . . 6 Exploration | -11 -10 -10 -10 -9 -8 -8 -8 -8 -6 ------------- Run | Yrd Mat Min Exi Min Mat Sto Rec Scr Fac Turns Passed 8114 | 270 362 1019 272 302 502 1243 1062 1117 1965 Spaces Moved 4215 | 124 187 593 170 172 244 538 614 692 881 Core 6 | 4 . 1 . . 1 . . . . Treads 3762 | 120 187 592 170 172 107 538 614 692 570 Legs . | . . . . . . . . . . Wheels 447 | . . . . . 136 . . . 311 Hover . | . . . . . . . . . . Flight . | . . . . . . . . . . Fastest Speed 50 | 50 160 160 160 160 95 160 160 160 93 Average Speed 154 | 156 160 160 160 160 131 160 160 160 142 Slowest Speed 600 | 160 160 300 160 160 600 160 160 160 240 Overloaded Moves . | . . . . . . . . . . Propulsion Burnouts . | . . . . . . . . . . Robots Hopped . | . . . . . . . . . . Potential Cave-ins . | . . . . . . . . . . Cave-ins Triggered . | . . . . . . . . . . Exploration Rate (%) 48 | 5 27 83 51 38 14 93 94 52 31 Regions Visited 9 Branch Regions 6 Pre-discovered Areas 6 | . . . 1 . . . 5 . . Known Exits Taken 1 | . . . . . 1 . . . . Unknown Exits Taken 8 | 1 1 1 1 1 . 1 1 1 . Scrap Searched 3 | . . 1 . 1 . . . 1 . Spaces Dug 28 | . . . . . . 5 2 . 21 Terrain Destroyed 104 | 1 12 41 . . 18 9 2 . 21 Melee 28 | . . . . . . 5 2 . 21 Projectile . | . . . . . . . . . . AOE 76 | 1 12 41 . . 18 4 . . . Terrain Rammed . | . . . . . . . . . . Walls Destroyed . | . . . . . . . . . . Machines Disabled . | . . . . . . . . . . Actions | -11 -10 -10 -10 -9 -8 -8 -8 -8 -6 --------- Run | Yrd Mat Min Exi Min Mat Sto Rec Scr Fac Total 5197 | 164 217 637 171 183 349 761 667 706 1342 Wait 382 | 9 . 4 . 2 31 98 13 2 223 Move 4206 | 123 186 592 169 171 243 537 613 691 881 Hop . | . . . . . . . . . . Pick Up 87 | 8 1 5 . 2 10 14 11 4 32 Fast Attach 44 | 6 5 2 . . 8 4 1 . 18 Attach 27 | . . 1 . . 4 3 . . 19 Detach 5 | . . . . . 1 . . . 4 Swap 40 | . 4 5 1 . 8 8 1 3 10 Drop 79 | 1 4 8 1 . 8 18 10 6 23 Fire 99 | 17 17 14 . 8 36 7 . . . Melee 207 | . . . . . . 66 17 . 124 Ram . | . . . . . . . . . . Kick . | . . . . . . . . . . Crush 8 | . . 6 . . . 1 . . 1 Escape Stasis 7 | . . . . . . . . . 7 Rewire 1 | . . . . . . . 1 . . Trap . | . . . . . . . . . . Miscellaneous 5 | . . . . . . 5 . . . Route ------- -11/Scrapyard -10/Materials -10/Mines (discovered 3 exits: [*Mat x2] / *Exi) -10/Exiles -9/Mines -8/Materials -8/Storage (discovered 2 exits: [*Fac] / *Rec) -8/Recycling (discovered 2 exits: *Fac / [*Scr]) -8/Scraptown -6/Factory (discovered 3 exits: [*Fac] / Low x2) History --------- Turn | Location | Event 7 | -11/Scrapyard | Discovered new exit (range 16) 271 | -11/Scrapyard | Entered Materials 310 | -10/Materials | Build established: Mutant 575 | -10/Materials | Discovered new exit (range 12) 633 | -10/Materials | Entered Mines 700 | -10/Mines | Learned Materials terminal intel 981 | -10/Mines | Discovered new exit (range 9) 986 | -10/Mines | Received a Mining Laser from a helpful Derelict 1376 | -10/Mines | Met a Derelict shopkeep closing up shop 1427 | -10/Mines | Discovered new exit (range 12) 1644 | -10/Mines | Deemed a non-threat by the Exiles lab entrance 1645 | -10/Mines | Discovered new exit (range 5) 1652 | -10/Mines | Entered Exiles 1652 | -10/Exiles | Accompanied by 1 ally 1682 | -10/Exiles | Led the pair of lost Derelicts to a safe place 1692 | -10/Exiles | Met 8R-AWN 1718 | -10/Exiles | Met EX-HEX 1793 | -10/Exiles | Met EX-DEC 1803 | -10/Exiles | Learned location of Zion (-6) 1902 | -10/Exiles | Discovered new exit (range 14) 1924 | -10/Exiles | Entered Mines 1945 | -9/Mines | Assisted by bots powering up and referring to "LRC-V3" 1964 | -9/Mines | Learned Materials security intel 2042 | -9/Mines | Found a hidden stash of uninstalled traps 2080 | -9/Mines | Discovered new exit (range 11) 2147 | -9/Mines | Assembled infested the area 2226 | -9/Mines | Entered Materials 2226 | -8/Materials | Accompanied by 3 allies 2226 | -8/Materials | Evolved 4 slots: Propulsion x2, Utility x1, Weapon x1 2227 | -8/Materials | Discovered new exit (range 8) 2228 | -8/Materials | Loaded intel: 12 terminal locations 2398 | -8/Materials | Lost 3 allies 2457 | -8/Materials | Lost 3 parts (2n1w) 2695 | -8/Materials | Identified exit to Storage 2728 | -8/Materials | Entered Storage 2860 | -8/Storage | Build established: Scavenger-Tank 3218 | -8/Storage | Build established: Scavenger-Gladiator 3762 | -8/Storage | Discovered new exit (range 16) 3967 | -8/Storage | Used back door to open Recycling access 3967 | -8/Storage | Discovered new exit (range 3) 3971 | -8/Storage | Entered Recycling 4222 | -8/Recycling | Scanned before Scraplab entrance 4854 | -8/Recycling | Discovered new exit (range 5) 5017 | -8/Recycling | Entered Scraplab 5030 | -8/Recycling | Discovered new exit (range 2) 5033 | -8/Recycling | Entered Scraptown 5035 | -8/Scraptown | System corruption cleaned by C-Scrubber 5095 | -8/Scraptown | Heard Great Nut preacher, LISTEN AND RECITE! 5450 | -8/Scraptown | Build established: Gladiator 5614 | -8/Scraptown | Discovered new exit (range 13) 5726 | -8/Scraptown | Visited Spacefarers 5790 | -8/Scraptown | Visited Assassins FH 5817 | -8/Scraptown | Visited Cyclists 5844 | -8/Scraptown | Visited Symbiants 6150 | -8/Scraptown | Entered Factory 6150 | -6/Factory | Evolved 4 slots: Propulsion x2, Utility x2 6465 | -6/Factory | Build established: Scavenger-Gladiator 7515 | -6/Factory | Lost 5 parts (4n1w) 7606 | -6/Factory | Identified exit to Lower Caves 7675 | -6/Factory | Lost 5 parts (1p1n2u1w) 7872 | -6/Factory | Fabricated Huge Storage Unit (x1) 8085 | -6/Factory | Discovered new exit (range 3) 8115 | -6/Factory | Self-destructed Last Messages --------------- 08085_ EXIT=FOUND 08096_ Hvy. Flail follow-up attack on G-50 Soldier. 08096_ G-50 Soldier suffers critical hit (Smash). 08096_ Destroyed Unknown Leg. 08096_ G-50 Soldier system corrupted by crushing effect. 08096_ G-50 Soldier destroyed. 08100_ System corrupted: Energy discharge (-62). 08101_ Slug penetrates Wall. 08101_ Com. Wheel destroyed. 08103_ Acquired 15 matter. 08104_ H-66 Slayer destroyed. 08107_ Spear follow-up attack on G-50 Soldier. 08107_ Slug penetrates Wall. 08107_ Com. Wheel destroyed. 08114_ Penetrated by Slug. 08115_ Wheel destroyed. 08115_ Seismic Detector destroyed. Map ----- +----------------------------------------------------+ | | | | | | | | | | | | | | | | | | | | | | | | | | | | | | | | | | | | | | | | | ?????????????????????????????????????????????????? | | ?????????????????????????????????????????????????? | | ????????????????????????#####????????????????????? | | ??####################### #######??????????????? | | ??? g < ???????????????? | | #####! #??????????#@h!#????????????????????? | | |*%# #????########Y##????????????????????? | | = #! =]#????# /! #%#######???????????????? | | # = #????# / /=[ ????????? | | "" # ###### ! #########???????????????? | | "" # + =#???????????????????????? | | T" # #####+###### #???????????????????????? | | "" # ## # """ #???????????????????????? | | "" # ## # """ #######?????????????????? | | # ## #! """ # +?????????????????? | | +#+### ?# """ !!!# # #?????????????????? | | ????? ?# """ !!!# """ # #?????????????????? | | ????? ?+ """ !!!#= """ / +?????????????????? | | ???? ?# # """ # #?????????????????? | | ????? ?# # # #?????????????????? | | ????? ?################## ##????????????????? | | ???? ???? #????????????????? | | ???? ????? #????????????????? | | "????????? #????????????????? | | """ ??? #????????????????? | | ??? #????????????????? | | !???? #????????????????? | | ???? "" " #????????????????? | | ?????????????##### " #????????????????? | | ????????????????#" #????????????????? | +----------------------------------------------------+ Best States ------------- Heat Dissipation 50 Energy Generation 19 Energy Capacity 500 Matter Stores 300 Matter Capacity 300 Sight Range 16 Terrain Scan Density 10 Corruption Block 8 Armor Coverage 600 Evasion (%) 41 Melee Accuracy 8 Recoil Reduction 6 Offensive Hacking 10 Item Schematics ----------------- Huge Storage Unit | -10/Materials | Hacked Cargo Storage Unit | -10/Materials | Hacked Robot Schematics ------------------ None Fabricated ------------ Huge Storage Unit | x1 | -6/Factory Repaired ---------- Nothing Studied --------- None Alien Tech Used ----------------- None Achievements -------------- None Challenges ------------ None Game ------ Seed ArmageddonBlastActivator Manual? 0 Play Time 00:59:49 Cumulative 472.9 hours Start 2026.07.20 @ 20:22:20 End 2026.07.21 @ 00:44:01 Sessions 1 Manual Loads 0 Difficulty Rogue Special Mode None Game No. 432 Rogue 432 Adventurer 0 Explorer 0 Win Type - Total 12 Types 7/0/2/1/0/0/0/1/0/1 Lore% 63 Gallery% 69 Achievement% 66 Wizard Run 0 Options --------- Layout 1 ASCII 0 Keyboard 0 Movement Mouse Keybinds 0 Fullscreen 2 Font 24/Cog Map View 50x35 Zoom Use 30% Tactical HUD 1 Map Filters NONE Filters NONE Steam 1 RUN: d5801d6c-328c-4a3a-8a04-0f2c63778fda